[Event "22nd ETCC Women 2019"]
[Site "Batumi"]
[Date "2019.10.27"]
[Round "4.35"]
[White "Gvetadze, Sofio"]
[Black "Pavlidou, Ekaterini"]
[Result "1-0"]
[ECO "B30"]
[WhiteElo "2297"]
[BlackElo "2183"]
[Annotator "NA"]
[PlyCount "85"]
[EventDate "2019.10.24"]
[EventType "team-tourn"]
[EventCountry "GEO"]
[SourceTitle "playchess.com"]
[Source "ChessBase"]
[SourceQuality "1"]
[WhiteTeam "Georgia"]
[BlackTeam "Greece"]
[WhiteTeamCountry "GEO"]
[BlackTeamCountry "GRE"]
[TimeControl "40/5400+30:1800+30"]

1. e4 {[%emt 0:00:00]} c5 {[%emt 0:00:10]} 2. Nf3 {[%emt 0:00:00]} Nc6 {[%emt 0:00:11]} 3. Bb5 {[%emt 0:00:00]} Nf6 {[%emt 0:00:35]} 4. Bxc6 {[%emt 0:01:42]} dxc6 {[%emt 0:00:10]} 5. d3 {[%emt 0:00:09]} Qc7 {[%emt 0:00:55]} 6. h3 {[%emt 0:00:15]} e5 {[%emt 0:00:44]} 7. O-O {[%emt 0:00:38]} h6 {[%emt 0:01:19]} 8. Be3 {[%emt 0:07:05]} Be6 {[%emt 0:01:38]} 9. Nbd2 {[%emt 0:00:17]} O-O-O {[%emt 0:02:29]} 10. a3 {[%emt 0:12:59]} g5 {[%emt 0:16:51]} 11. b4 {[%emt 0:03:07]} g4 {[%emt 0:07:52]} 12. hxg4 {[%emt 0:00:54]} Bxg4 {[%emt 0:00:26]} 13. bxc5 {[%emt 0:01:57]} Be7 {[%emt 0:01:13]} 14. Qb1 {[%emt 0:10:48]} Rdg8 {[%emt 0:02:33]} 15. Kh1 {[%emt 0:00:40]} Nh5 {[%emt 0:07:44]} 16. Qb2 {[%emt 0:04:05]} f6 {[%emt 0:20:20]} 17. Nh2 {[%emt 0:10:15]} Rh7 {[%emt 0:05:12]} 18. Qb3 {[%emt 0:13:23]} Rhg7 {[%emt 0:00:47]} 19. Nc4 {[%emt 0:01:13]} Nf4 {[%emt 0:10:56]} 20. Bxf4 {[%emt 0:07:37]} exf4 {[%emt 0:00:03]} 21. d4 {[%emt 0:00:07]} Be2 {[%emt 0:03:33]} 22. Rg1 {[%emt 0:00:11]} Qd7 {[%emt 0:02:52]} 23. Rab1 {[%emt 0:12:20]} Kb8 {[%emt 0:06:47]} 24. Na5 {[%emt 0:01:36]} Ba6 {[%emt 0:00:34]} 25. Qf3 {[%emt 0:00:59]} Ka8 {[%emt 0:04:39]} 26. Nb3 {[%emt 0:01:37]} f5 {[%emt 0:01:28]} 27. exf5 {[%emt 0:05:58]} Qxf5 {[%emt 0:00:28]} 28. Qc3 {[%emt 0:01:56]} Qd5 {[%emt 0:00:30]} 29. Qf3 {[%emt 0:00:41]} Bh4 {[%emt 0:00:45]} 30. Nd2 {[%emt 0:01:51]} Qf5 {[%emt 0:00:44]} 31. c4 {[%emt 0:00:11]} Bf6 {[%emt 0:00:30]} 32. d5 {[%emt 0:00:12]} cxd5 {[%emt 0:00:09]} 33. cxd5 {[%emt 0:00:07]} Bd4 {[%emt 0:00:44]} 34. c6 {[%emt 0:00:18]} Bb6 {[%emt 0:00:28]} 35. Rbc1 {[%emt 0:01:07]} bxc6 {[%emt 0:00:35]} 36. dxc6 {[%emt 0:00:08]} Bc7 {[%emt 0:00:35]} 37. Nb3 {[%emt 0:00:55]} Re7 {[%emt 0:00:10]} 38. Nc5 {[%emt 0:00:44]} Be2 {[%emt 0:00:02]} 39. Qb3 {[%emt 0:00:23]} Qc8 {[%emt 0:00:34]} 40. Rb1 {[%emt 0:00:00]} Bb6 {[%emt 0:00:00]} 41. Nd7 {[%emt 0:00:53]} Rg6 {[%emt 0:02:04]} 42. Qa4 {[%emt 0:10:47]} Bxf2 {[%emt 0:02:30]} 43. Qb4 {[%emt 0:03:16]} 1-0

[Event "22nd ETCC Women 2019"]
[Site "Batumi"]
[Date "2019.10.27"]
[Round "4.36"]
[White "Makropoulou, Marina"]
[Black "Mikadze, Miranda"]
[Result "1/2-1/2"]
[ECO "B18"]
[WhiteElo "2201"]
[BlackElo "2279"]
[Annotator "NA"]
[PlyCount "65"]
[EventDate "2019.10.24"]
[EventType "team-tourn"]
[EventCountry "GEO"]
[SourceTitle "playchess.com"]
[Source "ChessBase"]
[SourceQuality "1"]
[WhiteTeam "Greece"]
[BlackTeam "Georgia"]
[WhiteTeamCountry "GRE"]
[BlackTeamCountry "GEO"]
[TimeControl "40/5400+30:1800+30"]

1. e4 {[%emt 0:00:00]} c6 {[%emt 0:00:00]} 2. d4 {[%emt 0:00:01]} d5 {[%emt 0:00:00]} 3. Nc3 {[%emt 0:00:18]} dxe4 {[%emt 0:00:00]} 4. Nxe4 {[%emt 0:00:05]} Bf5 {[%emt 0:00:00]} 5. Ng3 {[%emt 0:00:43]} Bg6 {[%emt 0:00:00]} 6. Nf3 {[%emt 0:01:31]} Nd7 {[%emt 0:00:14]} 7. Bd3 {[%emt 0:00:52]} e6 {[%emt 0:00:12]} 8. O-O {[%emt 0:00:50]} Ngf6 {[%emt 0:00:12]} 9. Re1 {[%emt 0:00:34]} Be7 {[%emt 0:00:33]} 10. b3 {[%emt 0:02:16]} O-O {[%emt 0:00:44]} 11. Bxg6 {[%emt 0:00:19]} hxg6 {[%emt 0:00:04]} 12. Bb2 {[%emt 0:00:13]} Qa5 {[%emt 0:05:33]} 13. Qe2 {[%emt 0:02:48]} Rfe8 {[%emt 0:11:12]} 14. a3 {[%emt 0:02:05]} c5 {[%emt 0:05:35]} 15. dxc5 {[%emt 0:08:27]} Qxc5 {[%emt 0:00:05]} 16. c4 {[%emt 0:00:26]} Rac8 {[%emt 0:06:05]} 17. Rad1 {[%emt 0:06:18]} a5 {[%emt 0:06:37]} 18. Rc1 {[%emt 0:07:02]} Qb6 {[%emt 0:02:31]} 19. Rb1 {[%emt 0:06:43]} Qa6 {[%emt 0:08:56]} 20. a4 {[%emt 0:07:47]} Nc5 {[%emt 0:04:38]} 21. Bc3 {[%emt 0:01:01]} Red8 {[%emt 0:04:33]} 22. Ne5 {[%emt 0:02:04]} b6 {[%emt 0:03:54]} 23. h4 {[%emt 0:05:58]} Qb7 {[%emt 0:00:33]} 24. h5 {[%emt 0:00:10]} g5 {[%emt 0:09:19]} 25. Qe3 {[%emt 0:09:06]} Nh7 {[%emt 0:02:36]} 26. b4 {[%emt 0:01:17]} axb4 {[%emt 0:01:21]} 27. Bxb4 {[%emt 0:00:16]} Qc7 {[%emt 0:01:40]} 28. Qf3 {[%emt 0:05:03]} Bd6 {[%emt 0:03:17]} 29. Bxc5 {[%emt 0:00:23]} Bxc5 {[%emt 0:00:13]} 30. a5 {[%emt 0:00:33]} f6 {[%emt 0:11:39]} 31. axb6 {[%emt 0:00:38]} Bxb6 {[%emt 0:00:14]} 32. Ng6 {[%emt 0:00:33]} Rb8 {[%emt 0:01:59]} 33. Rbc1 {[%emt 0:06:05]} 1/2-1/2

[Event "22nd ETCC Women 2019"]
[Site "Batumi"]
[Date "2019.10.28"]
[Round "5.1"]
[White "Goryachkina, Aleksandra"]
[Black "Hoang, Thanh Trang"]
[Result "1/2-1/2"]
[ECO "A90"]
[WhiteElo "2575"]
[BlackElo "2414"]
[Annotator "ChessBase"]
[PlyCount "80"]
[EventDate "2019.10.24"]
[EventType "team-tourn"]
[EventCountry "GEO"]
[SourceTitle "playchess.com"]
[Source "ChessBase"]
[SourceQuality "1"]
[WhiteTeam "Russia"]
[BlackTeam "Hungary"]
[WhiteTeamCountry "RUS"]
[BlackTeamCountry "HUN"]
[TimeControl "40/5400+30:1800+30"]

1. d4 {[%emt 0:00:00]} e6 {[%emt 0:00:01]} 2. c4 {[%emt 0:00:00]} f5 {[%emt 0:00:36]} 3. g3 {[%emt 0:00:27]} Nf6 {[%emt 0:00:16]} 4. Bg2 {[%emt 0:00:08]} c6 {[%emt 0:00:39]} 5. Nf3 {[%emt 0:01:11]} d5 {[%emt 0:00:24]} 6. Bf4 {[%emt 0:05:59]} Nbd7 {[%emt 0:10:05]} 7. O-O {[%emt 0:03:18]} h6 {[%emt 0:02:51]} 8. Qc2 {[%emt 0:08:22]} g5 {[%emt 0:02:26]} 9. Bd2 {[%emt 0:03:41]} Ne4 {[%emt 0:08:56]} 10. Nc3 {[%emt 0:05:46]} Bg7 {[%emt 0:00:48]} 11. Rad1 {[%emt 0:08:29]} Nxd2 {[%emt 0:05:12]} 12. Rxd2 {[%emt 0:01:13]} O-O {[%emt 0:00:44]} 13. b3 {[%emt 0:02:25]} Qe7 {[%emt 0:06:19]} 14. Na4 {[%emt 0:02:44]} dxc4 {[%emt 0:08:21]} 15. Qxc4 {[%emt 0:05:25]} Kh8 {[%emt 0:01:42]} 16. Rfd1 {[%emt 0:03:41]} Rb8 {[%emt 0:05:55]} 17. Qc2 {[%emt 0:01:59]} e5 {[%emt 0:02:20]} 18. Nxe5 {[%emt 0:01:03]} Nxe5 {[%emt 0:00:21]} 19. dxe5 {[%emt 0:00:04]} Qxe5 {[%emt 0:00:58]} 20. Nc5 {[%emt 0:01:06]} f4 {[%emt 0:03:55]} 21. Nd7 {[%emt 0:03:47]} Bxd7 {[%emt 0:00:14]} 22. Rxd7 {[%emt 0:00:04]} Qf6 {[%emt 0:09:23]} 23. R1d6 {[%emt 0:08:35]} Qa1+ {[%emt 0:01:02]} 24. Bf1 {[%emt 0:00:43]} Rf6 {[%emt 0:01:26]} 25. Rd8+ {[%emt 0:04:17]} Rxd8 {[%emt 0:00:33]} 26. Rxd8+ {[%emt 0:00:05]} Rf8 {[%emt 0:00:25]} 27. Rxf8+ {[%emt 0:02:06]} Bxf8 {[%emt 0:00:11]} 28. Qf5 {[%emt 0:00:14]} Qg7 {[%emt 0:02:00]} 29. Bh3 {[%emt 0:02:35]} b6 {[%emt 0:02:01]} 30. Bg4 {[%emt 0:03:16]} Bc5 {[%emt 0:03:06]} 31. Kg2 {[%emt 0:06:15]} Qd4 {[%emt 0:03:47]} 32. Kh3 {[%emt 0:01:18]} fxg3 {[%emt 0:02:06]} 33. fxg3 {[%emt 0:02:07]} Kg7 {[%emt 0:03:08]} 34. Bf3 {[%emt 0:01:16]} Qf6 {[%emt 0:02:37]} 35. Qd7+ {[%emt 0:00:41]} Qf7 {[%emt 0:01:02]} 36. Qxc6 {[%emt 0:04:34]} h5 {[%emt 0:01:24]} 37. g4 {[%emt 0:01:34]} hxg4+ {[%emt 0:00:36]} 38. Bxg4 {[%emt 0:00:33]} Qf1+ {[%emt 0:00:18]} 39. Qg2 {[%emt 0:00:09]} Qxg2+ {[%emt 0:00:09]} 40. Kxg2 {[%emt 0:00:00]} Kf6 {[%emt 0:00:00]} 1/2-1/2

[Event "22nd ETCC Women 2019"]
[Site "Batumi"]
[Date "2019.10.28"]
[Round "5.1"]
[White "Tsolakidou, Stavroula"]
[Black "Koridze, Lile"]
[Result "1/2-1/2"]
[ECO "B67"]
[WhiteElo "2431"]
[BlackElo "1988"]
[Annotator "NA"]
[PlyCount "70"]
[EventDate "2019.10.24"]
[EventType "team-tourn"]
[EventCountry "GEO"]
[SourceTitle "playchess.com"]
[Source "ChessBase"]
[SourceQuality "1"]
[WhiteTeam "Greece"]
[BlackTeam "Georgia"]
[WhiteTeamCountry "GRE"]
[BlackTeamCountry "GEO"]
[TimeControl "40/5400+30:1800+30"]

1. e4 {[%emt 0:00:00]} c5 {[%emt 0:00:00]} 2. Nf3 {[%emt 0:00:00]} d6 {[%emt 0:00:00]} 3. d4 {[%emt 0:00:00]} cxd4 {[%emt 0:00:00]} 4. Nxd4 {[%emt 0:00:00]} Nf6 {[%emt 0:00:00]} 5. Nc3 {[%emt 0:00:06]} Nc6 {[%emt 0:00:00]} 6. Bg5 {[%emt 0:00:08]} e6 {[%emt 0:00:04]} 7. Qd2 {[%emt 0:00:12]} a6 {[%emt 0:00:07]} 8. O-O-O {[%emt 0:00:38]} Bd7 {[%emt 0:00:04]} 9. f4 {[%emt 0:03:04]} b5 {[%emt 0:00:26]} 10. Bxf6 {[%emt 0:07:35]} gxf6 {[%emt 0:01:17]} 11. Kb1 {[%emt 0:05:20]} h5 {[%emt 0:05:07]} 12. Nxc6 {[%emt 0:09:52]} Bxc6 {[%emt 0:00:05]} 13. Qe1 {[%emt 0:03:01]} Bh6 {[%emt 0:07:42]} 14. g3 {[%emt 0:06:04]} Qe7 {[%emt 0:05:05]} 15. Bg2 {[%emt 0:03:18]} O-O-O {[%emt 0:05:30]} 16. Qf2 {[%emt 0:04:39]} Qb7 {[%emt 0:04:00]} 17. Rd4 {[%emt 0:08:03]} f5 {[%emt 0:10:05]} 18. Rhd1 {[%emt 0:09:26]} Bf8 {[%emt 0:04:12]} 19. Qd2 {[%emt 0:04:32]} Be7 {[%emt 0:01:50]} 20. Bh3 {[%emt 0:05:16]} Bf6 {[%emt 0:07:07]} 21. exf5 {[%emt 0:07:27]} Bxd4 {[%emt 0:00:30]} 22. Qxd4 {[%emt 0:01:10]} Rhe8 {[%emt 0:02:51]} 23. fxe6 {[%emt 0:00:25]} fxe6 {[%emt 0:00:09]} 24. Qf6 {[%emt 0:05:12]} Qe7 {[%emt 0:23:34]} 25. Qg6 {[%emt 0:00:06]} Kb8 {[%emt 0:01:22]} 26. Qxh5 {[%emt 0:02:43]} Rh8 {[%emt 0:01:34]} 27. Qg4 {[%emt 0:00:05]} Qh7 {[%emt 0:04:36]} 28. Bf1 {[%emt 0:01:17]} Qxh2 {[%emt 0:00:22]} 29. Qxe6 {[%emt 0:01:37]} Qxg3 {[%emt 0:00:44]} 30. Qf6 {[%emt 0:07:37]} Qe3 {[%emt 0:04:32]} 31. a3 {[%emt 0:04:24]} Rhf8 {[%emt 0:03:06]} 32. Qd4 {[%emt 0:00:05]} Qxd4 {[%emt 0:00:51]} 33. Rxd4 {[%emt 0:00:04]} Rde8 {[%emt 0:02:45]} 34. Bd3 {[%emt 0:01:16]} Kc7 {[%emt 0:01:01]} 35. b3 {[%emt 0:00:26]} Re1+ {[%emt 0:01:33]} 1/2-1/2

[Event "22nd ETCC Women 2019"]
[Site "Batumi"]
[Date "2019.10.28"]
[Round "5.2"]
[White "Pipia, Ekaterine"]
[Black "Avramidou, Anastasia"]
[Result "0-1"]
[ECO "D37"]
[WhiteElo "1935"]
[BlackElo "2247"]
[Annotator "NA"]
[PlyCount "106"]
[EventDate "2019.10.24"]
[EventType "team-tourn"]
[EventCountry "GEO"]
[SourceTitle "playchess.com"]
[Source "ChessBase"]
[SourceQuality "1"]
[WhiteTeam "Georgia"]
[BlackTeam "Greece"]
[WhiteTeamCountry "GEO"]
[BlackTeamCountry "GRE"]
[TimeControl "40/5400+30:1800+30"]

1. d4 {[%emt 0:00:00]} d5 {[%emt 0:00:00]} 2. c4 {[%emt 0:00:00]} e6 {[%emt 0:00:00]} 3. Nf3 {[%emt 0:00:00]} Nf6 {[%emt 0:00:18]} 4. Nc3 {[%emt 0:00:00]} a6 {[%emt 0:00:09]} 5. cxd5 {[%emt 0:00:59]} exd5 {[%emt 0:00:08]} 6. Bg5 {[%emt 0:00:33]} Be6 {[%emt 0:00:08]} 7. e3 {[%emt 0:01:00]} Nbd7 {[%emt 0:00:09]} 8. Bd3 {[%emt 0:01:17]} h6 {[%emt 0:00:08]} 9. Bh4 {[%emt 0:00:35]} g5 {[%emt 0:00:11]} 10. Bg3 {[%emt 0:01:09]} Nh5 {[%emt 0:00:12]} 11. Be5 {[%emt 0:05:02]} Ng7 {[%emt 0:00:14]} 12. h3 {[%emt 0:03:10]} c6 {[%emt 0:00:42]} 13. Bh2 {[%emt 0:03:25]} Bf5 {[%emt 0:09:08]} 14. O-O {[%emt 0:01:49]} Bxd3 {[%emt 0:21:55]} 15. Qxd3 {[%emt 0:00:02]} Be7 {[%emt 0:00:16]} 16. e4 {[%emt 0:05:58]} dxe4 {[%emt 0:14:19]} 17. Nxe4 {[%emt 0:01:45]} O-O {[%emt 0:00:17]} 18. d5 {[%emt 0:06:25]} f5 {[%emt 0:07:13]} 19. d6 {[%emt 0:06:35]} fxe4 {[%emt 0:02:24]} 20. Qc4+ {[%emt 0:03:05]} Rf7 {[%emt 0:07:58]} 21. dxe7 {[%emt 0:01:12]} Qxe7 {[%emt 0:00:06]} 22. Rfe1 {[%emt 0:02:45]} Re8 {[%emt 0:00:08]} 23. Rad1 {[%emt 0:01:47]} Qe6 {[%emt 0:11:02]} 24. Qc2 {[%emt 0:07:19]} Nf5 {[%emt 0:06:41]} 25. g4 {[%emt 0:03:33]} Ng7 {[%emt 0:00:06]} 26. Rd6 {[%emt 0:04:48]} Qe7 {[%emt 0:00:36]} 27. Rxd7 {[%emt 0:09:33]} Qxd7 {[%emt 0:00:00]} 28. Ne5 {[%emt 0:00:06]} Qe6 {[%emt 0:05:52]} 29. Nxf7 {[%emt 0:02:17]} Kxf7 {[%emt 0:00:05]} 30. Qc5 {[%emt 0:07:55]} Qd5 {[%emt 0:01:33]} 31. Qb4 {[%emt 0:02:56]} Re7 {[%emt 0:02:15]} 32. Bd6 {[%emt 0:02:31]} a5 {[%emt 0:00:46]} 33. Qa3 {[%emt 0:01:59]} Rd7 {[%emt 0:00:47]} 34. Bc5 {[%emt 0:02:30]} Ne6 {[%emt 0:00:26]} 35. Bb6 {[%emt 0:02:27]} Nf4 {[%emt 0:01:47]} 36. Qxa5 {[%emt 0:03:43]} Nxh3+ {[%emt 0:00:19]} 37. Kh2 {[%emt 0:01:44]} Qxa5 {[%emt 0:03:07]} 38. Bxa5 {[%emt 0:00:02]} Nxf2 {[%emt 0:00:07]} 39. Rf1 {[%emt 0:04:32]} e3 {[%emt 0:00:06]} 40. Be1 {[%emt 0:00:00]} Rd1 {[%emt 0:00:00]} 41. Kg2 {[%emt 0:03:12]} Kg6 {[%emt 0:03:37]} 42. Bxf2 {[%emt 0:02:54]} Rxf1 {[%emt 0:00:08]} 43. Kxf1 {[%emt 0:00:45]} exf2 {[%emt 0:00:04]} 44. Kxf2 {[%emt 0:00:02]} h5 {[%emt 0:00:08]} 45. gxh5+ {[%emt 0:00:06]} Kxh5 {[%emt 0:00:04]} 46. Kg3 {[%emt 0:00:25]} c5 {[%emt 0:05:23]} 47. b3 {[%emt 0:02:07]} g4 {[%emt 0:00:08]} 48. Kf2 {[%emt 0:04:23]} Kh4 {[%emt 0:01:09]} 49. Kg2 {[%emt 0:00:25]} g3 {[%emt 0:00:07]} 50. Kg1 {[%emt 0:00:37]} Kh3 {[%emt 0:00:40]} 51. Kh1 {[%emt 0:00:30]} b5 {[%emt 0:01:24]} 52. Kg1 {[%emt 0:00:14]} c4 {[%emt 0:00:05]} 53. a4 {[%emt 0:01:27]} cxb3 {[%emt 0:00:19]} 0-1

[Event "22nd ETCC Women 2019"]
[Site "Batumi"]
[Date "2019.10.28"]
[Round "5.3"]
[White "Gunina, Valentina"]
[Black "Lazarne Vajda, Szidonia"]
[Result "1-0"]
[ECO "B38"]
[WhiteElo "2509"]
[BlackElo "2353"]
[Annotator "ChessBase"]
[PlyCount "53"]
[EventDate "2019.10.24"]
[EventType "team-tourn"]
[EventCountry "GEO"]
[SourceTitle "playchess.com"]
[Source "ChessBase"]
[SourceQuality "1"]
[WhiteTeam "Russia"]
[BlackTeam "Hungary"]
[WhiteTeamCountry "RUS"]
[BlackTeamCountry "HUN"]
[TimeControl "40/5400+30:1800+30"]

1. e4 {[%emt 0:00:00]} c5 {[%emt 0:00:12]} 2. Nf3 {[%emt 0:00:00]} Nc6 {[%emt 0:00:26]} 3. d4 {[%emt 0:00:48]} cxd4 {[%emt 0:00:14]} 4. Nxd4 {[%emt 0:00:05]} g6 {[%emt 0:01:57]} 5. c4 {[%emt 0:10:40]} Bg7 {[%emt 0:01:45]} 6. Be3 {[%emt 0:00:36]} Nf6 {[%emt 0:00:52]} 7. f3 {[%emt 0:04:16]} O-O {[%emt 0:03:17]} 8. Nc3 {[%emt 0:01:07]} d6 {[%emt 0:03:01]} 9. Qd2 {[%emt 0:04:45]} Bd7 {[%emt 0:04:11]} 10. Be2 {[%emt 0:00:46]} Qa5 {[%emt 0:06:54]} 11. O-O {[%emt 0:01:42]} Rfc8 {[%emt 0:01:00]} 12. Rac1 {[%emt 0:01:55]} Nxd4 {[%emt 0:16:04]} 13. Bxd4 {[%emt 0:00:55]} Ne8 {[%emt 0:01:01]} 14. Be3 {[%emt 0:01:55]} Be6 {[%emt 0:09:50]} 15. b3 {[%emt 0:03:22]} a6 {[%emt 0:05:42]} 16. f4 {[%emt 0:03:10]} Bxc3 {[%emt 0:09:15]} 17. Rxc3 {[%emt 0:01:22]} Nf6 {[%emt 0:05:15]} 18. Bd3 {[%emt 0:08:53]} b5 {[%emt 0:05:38]} 19. f5 {[%emt 0:02:25]} Bd7 {[%emt 0:00:07]} 20. Bd4 {[%emt 0:01:50]} bxc4 {[%emt 0:05:16]} 21. fxg6 {[%emt 0:01:36]} hxg6 {[%emt 0:00:31]} 22. Bxc4 {[%emt 0:01:10]} Bb5 {[%emt 0:07:35]} 23. Qh6 {[%emt 0:02:00]} Bxc4 {[%emt 0:09:34]} 24. Rh3 {[%emt 0:00:37]} Qh5 {[%emt 0:01:38]} 25. Rxh5 {[%emt 0:00:07]} gxh5 {[%emt 0:00:11]} 26. Rxf6 {[%emt 0:00:08]} exf6 {[%emt 0:00:36]} 27. Bxf6 {[%emt 0:00:06]} 1-0

[Event "22nd ETCC Women 2019"]
[Site "Batumi"]
[Date "2019.10.28"]
[Round "5.3"]
[White "Makropoulou, Marina"]
[Black "Donghvani, Nia"]
[Result "1/2-1/2"]
[ECO "B51"]
[WhiteElo "2201"]
[BlackElo "1903"]
[Annotator "NA"]
[PlyCount "100"]
[EventDate "2019.10.24"]
[EventType "team-tourn"]
[EventCountry "GEO"]
[SourceTitle "playchess.com"]
[Source "ChessBase"]
[SourceQuality "1"]
[WhiteTeam "Greece"]
[BlackTeam "Georgia"]
[WhiteTeamCountry "GRE"]
[BlackTeamCountry "GEO"]
[TimeControl "40/5400+30:1800+30"]

1. e4 {[%emt 0:00:00]} c5 {[%emt 0:00:00]} 2. Nf3 {[%emt 0:00:22]} d6 {[%emt 0:00:00]} 3. Bb5+ Nd7 {[%emt 0:00:00]} 4. d4 {[%emt 0:04:59]} cxd4 {[%emt 0:00:09]} 5. Nxd4 {[%emt 0:01:11]} Ngf6 {[%emt 0:04:06]} 6. O-O {[%emt 0:08:16]} a6 {[%emt 0:02:11]} 7. Bxd7+ {[%emt 0:02:59]} Bxd7 {[%emt 0:00:36]} 8. Re1 {[%emt 0:01:23]} e5 {[%emt 0:04:29]} 9. Nf5 {[%emt 0:01:55]} Nxe4 {[%emt 0:18:38]} 10. Nxg7+ {[%emt 0:06:46]} Bxg7 {[%emt 0:00:05]} 11. Rxe4 {[%emt 0:00:05]} Bf5 {[%emt 0:08:51]} 12. Re1 {[%emt 0:01:18]} O-O {[%emt 0:03:11]} 13. Nc3 {[%emt 0:00:18]} Rc8 {[%emt 0:04:26]} 14. a4 {[%emt 0:02:08]} Qd7 {[%emt 0:07:48]} 15. Be3 {[%emt 0:02:59]} Rc4 {[%emt 0:06:05]} 16. Re2 {[%emt 0:09:41]} Rg4 {[%emt 0:06:12]} 17. Rd2 {[%emt 0:11:51]} Rg6 {[%emt 0:01:21]} 18. f3 {[%emt 0:04:01]} Re8 {[%emt 0:06:33]} 19. Ne4 {[%emt 0:13:19]} Bxe4 {[%emt 0:07:18]} 20. fxe4 {[%emt 0:00:05]} Qg4 {[%emt 0:00:36]} 21. Qxg4 {[%emt 0:01:04]} Rxg4 {[%emt 0:00:56]} 22. Rxd6 {[%emt 0:01:46]} Rxe4 {[%emt 0:00:04]} 23. Bd2 {[%emt 0:05:41]} Rc4 {[%emt 0:08:17]} 24. c3 {[%emt 0:01:07]} e4 {[%emt 0:02:36]} 25. Be3 {[%emt 0:01:24]} Be5 {[%emt 0:03:57]} 26. Rd7 {[%emt 0:00:23]} b5 {[%emt 0:00:37]} 27. axb5 {[%emt 0:06:16]} axb5 {[%emt 0:00:04]} 28. Raa7 {[%emt 0:00:17]} f5 {[%emt 0:02:17]} 29. g3 {[%emt 0:01:41]} b4 {[%emt 0:01:14]} 30. Bd4 {[%emt 0:06:19]} Bxd4+ {[%emt 0:01:13]} 31. cxd4 {[%emt 0:00:01]} Rc1+ {[%emt 0:00:45]} 32. Kg2 {[%emt 0:00:11]} Rc2+ {[%emt 0:00:22]} 33. Kh3 {[%emt 0:00:40]} Rxb2 {[%emt 0:00:53]} 34. Rg7+ {[%emt 0:04:59]} Kh8 {[%emt 0:00:05]} 35. Rxh7+ {[%emt 0:00:10]} Kg8 {[%emt 0:00:05]} 36. Rag7+ {[%emt 0:00:20]} Kf8 {[%emt 0:00:07]} 37. Rf7+ {[%emt 0:01:21]} Kg8 {[%emt 0:00:06]} 38. Rhg7+ {[%emt 0:00:13]} Kh8 {[%emt 0:00:08]} 39. Rh7+ {[%emt 0:00:32]} Kg8 {[%emt 0:00:06]} 40. Rfg7+ {[%emt 0:00:00]} Kf8 {[%emt 0:00:00]} 41. d5 {[%emt 0:01:10]} Rd2 {[%emt 0:03:47]} 42. Rd7 {[%emt 0:03:49]} Kg8 {[%emt 0:00:06]} 43. d6 {[%emt 0:00:26]} Rxd6 {[%emt 0:01:32]} 44. Rhg7+ {[%emt 0:00:09]} Kh8 {[%emt 0:00:04]} 45. Rh7+ {[%emt 0:00:03]} Kg8 {[%emt 0:00:04]} 46. Rdg7+ {[%emt 0:00:21]} Kf8 {[%emt 0:00:10]} 47. Rf7+ {[%emt 0:00:27]} Kg8 {[%emt 0:00:07]} 48. Rfg7+ {[%emt 0:00:05]} Kf8 {[%emt 0:00:10]} 49. Rf7+ {[%emt 0:00:09]} Kg8 {[%emt 0:00:04]} 50. Rfg7+ {[%emt 0:00:13]} Kf8 {[%emt 0:00:05]} 1/2-1/2

[Event "22nd ETCC Women 2019"]
[Site "Batumi"]
[Date "2019.10.28"]
[Round "5.4"]
[White "Gara, Ticia"]
[Black "Kashlinskaya, Alina"]
[Result "1/2-1/2"]
[ECO "C07"]
[WhiteElo "2322"]
[BlackElo "2481"]
[Annotator "ChessBase"]
[PlyCount "83"]
[EventDate "2019.10.24"]
[EventType "team-tourn"]
[EventCountry "GEO"]
[SourceTitle "playchess.com"]
[Source "ChessBase"]
[SourceQuality "1"]
[WhiteTeam "Hungary"]
[BlackTeam "Russia"]
[WhiteTeamCountry "HUN"]
[BlackTeamCountry "RUS"]
[TimeControl "40/5400+30:1800+30"]

1. e4 {[%emt 0:00:00]} e6 {[%emt 0:00:00]} 2. d4 {[%emt 0:00:00]} d5 {[%emt 0:00:00]} 3. Nd2 {[%emt 0:00:07]} c5 {[%emt 0:00:00]} 4. exd5 {[%emt 0:00:46]} Qxd5 {[%emt 0:00:10]} 5. Ngf3 {[%emt 0:00:36]} cxd4 {[%emt 0:00:14]} 6. Bc4 {[%emt 0:00:36]} Qd7 {[%emt 0:00:18]} 7. O-O {[%emt 0:00:52]} Nc6 {[%emt 0:00:12]} 8. Nb3 {[%emt 0:00:52]} Nf6 {[%emt 0:00:26]} 9. Nbxd4 {[%emt 0:01:13]} Nxd4 {[%emt 0:00:18]} 10. Nxd4 {[%emt 0:00:08]} a6 {[%emt 0:00:16]} 11. Re1 {[%emt 0:00:25]} Qc7 {[%emt 0:01:04]} 12. Bf1 {[%emt 0:00:23]} Be7 {[%emt 0:01:57]} 13. Qf3 {[%emt 0:01:22]} O-O {[%emt 0:04:12]} 14. Bf4 {[%emt 0:00:34]} Bd6 {[%emt 0:09:50]} 15. Bxd6 {[%emt 0:01:12]} Qxd6 {[%emt 0:00:06]} 16. Rad1 {[%emt 0:00:06]} Qc7 {[%emt 0:06:23]} 17. Qg3 {[%emt 0:06:50]} Qb6 {[%emt 0:18:29]} 18. b3 {[%emt 0:14:27]} Bd7 {[%emt 0:00:38]} 19. Nf3 {[%emt 0:00:49]} Bc6 {[%emt 0:07:21]} 20. Ne5 {[%emt 0:01:36]} Rad8 {[%emt 0:00:36]} 21. Nxc6 {[%emt 0:07:24]} Qxc6 {[%emt 0:00:11]} 22. c4 {[%emt 0:00:18]} h6 {[%emt 0:06:12]} 23. Be2 {[%emt 0:04:58]} Qc5 {[%emt 0:01:16]} 24. Qe3 {[%emt 0:09:12]} Qb4 {[%emt 0:17:03]} 25. Bf3 {[%emt 0:01:23]} a5 {[%emt 0:01:31]} 26. Qa7 {[%emt 0:07:55]} Rd7 {[%emt 0:02:30]} 27. Kf1 {[%emt 0:19:54]} Rfd8 {[%emt 0:00:43]} 28. Rxd7 {[%emt 0:01:43]} Rxd7 {[%emt 0:00:11]} 29. g3 {[%emt 0:02:26]} b6 {[%emt 0:09:02]} 30. Qb8+ {[%emt 0:02:42]} Kh7 {[%emt 0:00:03]} 31. Rd1 {[%emt 0:00:26]} Rxd1+ {[%emt 0:06:56]} 32. Bxd1 {[%emt 0:00:03]} Qd2 {[%emt 0:00:12]} 33. Bf3 {[%emt 0:00:23]} Qd4 {[%emt 0:00:13]} 34. Qb7 {[%emt 0:04:30]} Kg6 {[%emt 0:01:20]} 35. h4 {[%emt 0:00:55]} h5 {[%emt 0:00:14]} 36. Kg2 {[%emt 0:00:51]} e5 {[%emt 0:03:38]} 37. Bd5 {[%emt 0:00:18]} Nxd5 {[%emt 0:00:05]} 38. cxd5 {[%emt 0:00:16]} Qe4+ {[%emt 0:00:06]} 39. Kh2 {[%emt 0:01:05]} Qd4 {[%emt 0:00:08]} 40. Kg2 {[%emt 0:00:00]} Qe4+ {[%emt 0:00:00]} 41. Kh2 {[%emt 0:03:02]} Qd4 {[%emt 0:00:29]} 42. Kg2 {[%emt 0:00:26]} 1/2-1/2